[Event "*** Titled Tuesday Blitz"]
[Site "Chess.com"]
[Date "2019.07.02"]
[Round "10"]
[White "VladDobrov"]
[Black "Tjktiger"]
[Result "1-0"]
[WhiteElo "2869"]
[BlackElo "2865"]
[TimeControl "180+2"]
[EndTime "15:16:13 PDT"]
[Termination "VladDobrov won by resignation"]

1. d4 {[%clk 0:03:01.9]} 1... d6 {[%clk 0:02:58.4]} 2. Nf3 {[%clk 0:03:03.1]}
2... g6 {[%clk 0:02:59.2]} 3. g3 {[%clk 0:03:03.6]} 3... Bg7 {[%clk 0:03:00.2]}
4. Bg2 {[%clk 0:03:04.5]} 4... Nf6 {[%clk 0:03:01.9]} 5. O-O {[%clk 0:03:05.6]}
5... O-O {[%clk 0:03:03.8]} 6. c4 {[%clk 0:03:06.8]} 6... Ne4 {[%clk 0:03:03.3]}
7. Qc2 {[%clk 0:02:45.2]} 7... f5 {[%clk 0:03:03.9]} 8. Nc3 {[%clk 0:02:44.6]}
8... Nxc3 {[%clk 0:03:03.9]} 9. Qxc3 {[%clk 0:02:36.6]} 9... Nc6 {[%clk
0:03:00.2]} 10. Rd1 {[%clk 0:02:25.8]} 10... e5 {[%clk 0:02:56.5]} 11. dxe5
{[%clk 0:02:24.9]} 11... Qe8 {[%clk 0:02:57.4]} 12. c5 {[%clk 0:02:22.9]} 12...
dxe5 {[%clk 0:02:56]} 13. e4 {[%clk 0:02:22.1]} 13... fxe4 {[%clk 0:02:42.6]}
14. Ng5 {[%clk 0:02:13.8]} 14... Nd4 {[%clk 0:02:42.2]} 15. Re1 {[%clk
0:02:14.2]} 15... Bg4 {[%clk 0:02:32]} 16. Qc4+ {[%clk 0:01:59.1]} 16... Kh8
{[%clk 0:02:32.9]} 17. Rxe4 {[%clk 0:01:57]} 17... Qd7 {[%clk 0:01:56.2]} 18.
Be3 {[%clk 0:01:55.6]} 18... Be2 {[%clk 0:01:21.2]} 19. Qc3 {[%clk 0:01:15.8]}
19... Bb5 {[%clk 0:00:54.2]} 20. Bxd4 {[%clk 0:00:59.9]} 20... exd4 {[%clk
0:00:54.8]} 21. Qb3 {[%clk 0:01:01]} 21... Ba4 {[%clk 0:00:19.6]} 22. Qc4 {[%clk
0:00:58.3]} 22... Bb5 {[%clk 0:00:18.9]} 23. Qb3 {[%clk 0:00:58.8]} 23... Ba4
{[%clk 0:00:20.1]} 24. Qb4 {[%clk 0:01:00]} 24... Bc6 {[%clk 0:00:21]} 25. Rh4
{[%clk 0:01:00.1]} 25... Bxg2 {[%clk 0:00:19.6]} 26. Nxh7 {[%clk 0:00:52.5]}
26... Kg8 {[%clk 0:00:18.1]} 27. Nxf8 {[%clk 0:00:49.2]} 27... Rxf8 {[%clk
0:00:17.8]} 28. Kxg2 {[%clk 0:00:50.1]} 28... Qd5+ {[%clk 0:00:09.5]} 29. Kg1
{[%clk 0:00:51.3]} 29... d3 {[%clk 0:00:06.3]} 30. Qc4 {[%clk 0:00:52.3]} 30...
Qxc4 {[%clk 0:00:07]} 31. Rxc4 {[%clk 0:00:54.2]} 31... Bxb2 {[%clk 0:00:06.6]}
32. Rd1 {[%clk 0:00:55.2]} 32... Rd8 {[%clk 0:00:08.2]} 33. Rd2 {[%clk
0:00:49.1]} 33... Bf6 {[%clk 0:00:06.2]} 34. f4 {[%clk 0:00:47.1]} 34... Kf7
{[%clk 0:00:06.6]} 35. Kf2 {[%clk 0:00:48.1]} 35... Bd4+ {[%clk 0:00:03.7]} 36.
Kf3 {[%clk 0:00:49.2]} 36... b5 {[%clk 0:00:02.8]} 37. cxb6 {[%clk 0:00:46.6]}
37... Bxb6 {[%clk 0:00:04.7]} 38. Rc3 {[%clk 0:00:47.9]} 38... Re8 {[%clk
0:00:03.5]} 39. Rcxd3 {[%clk 0:00:48.7]} 39... Kf6 {[%clk 0:00:05.4]} 40. h4
{[%clk 0:00:48.3]} 40... Re6 {[%clk 0:00:05.2]} 41. g4 {[%clk 0:00:47.5]} 41...
Re1 {[%clk 0:00:06.8]} 42. g5+ {[%clk 0:00:48.6]} 42... Kf7 {[%clk 0:00:08.2]}
43. Re2 {[%clk 0:00:31]} 43... Rf1+ {[%clk 0:00:09]} 44. Kg4 {[%clk 0:00:32.5]}
44... Rg1+ {[%clk 0:00:10]} 45. Rg3 {[%clk 0:00:33.3]} 45... Rf1 {[%clk
0:00:09.2]} 46. Rf3 {[%clk 0:00:34.3]} 46... Rg1+ {[%clk 0:00:10.1]} 47. Kh3
{[%clk 0:00:35.5]} 47... Rh1+ {[%clk 0:00:11.2]} 48. Rh2 {[%clk 0:00:36.6]}
48... Re1 {[%clk 0:00:08.7]} 49. f5 {[%clk 0:00:37.8]} 49... gxf5 {[%clk
0:00:09.8]} 50. Rxf5+ {[%clk 0:00:39]} 50... Kg6 {[%clk 0:00:08.7]} 51. Rf3
{[%clk 0:00:39.5]} 51... Kh5 {[%clk 0:00:08.9]} 52. Rf6 {[%clk 0:00:27.9]} 52...
Re3+ {[%clk 0:00:09.5]} 53. Kg2 {[%clk 0:00:29.1]} 53... Kg4 {[%clk 0:00:11.1]}
54. Kf1 {[%clk 0:00:27.2]} 54... Rc3 {[%clk 0:00:08.6]} 55. Rg2+ {[%clk
0:00:25.4]} 55... Kh3 {[%clk 0:00:10]} 56. Rd2 {[%clk 0:00:22.9]} 56... Kxh4
{[%clk 0:00:10.8]} 57. g6 {[%clk 0:00:24.2]} 57... Rc1+ {[%clk 0:00:07.8]} 58.
Kg2 {[%clk 0:00:21.7]} 58... Rg1+ {[%clk 0:00:09.2]} 59. Kh2 {[%clk 0:00:22.9]}
59... Kh5 {[%clk 0:00:06.9]} 60. Rxb6 {[%clk 0:00:23.4]} 1-0

[Event "*** Titled Tuesday Blitz"]
[Site "Chess.com"]
[Date "2019.07.02"]
[Round "10"]
[White "Sajkochess"]
[Black "tteshan"]
[Result "1-0"]
[WhiteElo "2246"]
[BlackElo "2192"]
[TimeControl "180+2"]
[EndTime "15:16:16 PDT"]
[Termination "Sajkochess won by resignation"]

1. d4 {[%clk 0:03:01.9]} 1... Nf6 {[%clk 0:03:00]} 2. Nf3 {[%clk 0:03:01.9]}
2... e6 {[%clk 0:03:00.6]} 3. e3 {[%clk 0:03:02.9]} 3... b6 {[%clk 0:03:01.4]}
4. Bd3 {[%clk 0:03:03.3]} 4... Bb7 {[%clk 0:03:02.5]} 5. O-O {[%clk 0:03:04.8]}
5... d6 {[%clk 0:03:01]} 6. c4 {[%clk 0:03:00.6]} 6... Be7 {[%clk 0:03:01.8]} 7.
Nc3 {[%clk 0:02:55.2]} 7... O-O {[%clk 0:03:02.2]} 8. d5 {[%clk 0:02:54.6]} 8...
e5 {[%clk 0:02:55.9]} 9. Nd2 {[%clk 0:02:51.1]} 9... Nbd7 {[%clk 0:02:56.4]} 10.
f4 {[%clk 0:02:50.1]} 10... Nc5 {[%clk 0:02:54.1]} 11. Bc2 {[%clk 0:02:47.6]}
11... exf4 {[%clk 0:02:51.3]} 12. exf4 {[%clk 0:02:46.2]} 12... Qd7 {[%clk
0:02:47.6]} 13. b4 {[%clk 0:02:42.8]} 13... Na6 {[%clk 0:02:43.4]} 14. a3 {[%clk
0:02:38.5]} 14... Rae8 {[%clk 0:02:40.4]} 15. h3 {[%clk 0:02:30.7]} 15... c6
{[%clk 0:02:38.6]} 16. Ba4 {[%clk 0:02:21.3]} 16... Nb8 {[%clk 0:02:36]} 17. Bb2
{[%clk 0:02:10.7]} 17... a6 {[%clk 0:02:29.2]} 18. dxc6 {[%clk 0:02:01.8]} 18...
Bxc6 {[%clk 0:02:28.1]} 19. Bxc6 {[%clk 0:01:59.3]} 19... Nxc6 {[%clk 0:02:30]}
20. Nd5 {[%clk 0:01:58.2]} 20... Nxd5 {[%clk 0:02:17.9]} 21. cxd5 {[%clk
0:01:59]} 21... Nd8 {[%clk 0:02:17]} 22. Ne4 {[%clk 0:01:54.7]} 22... Qf5 {[%clk
0:02:09.7]} 23. Qd4 {[%clk 0:01:53.5]} 23... f6 {[%clk 0:02:03.9]} 24. g4 {[%clk
0:01:52.5]} 24... Qg6 {[%clk 0:02:00.8]} 25. f5 {[%clk 0:01:42.4]} 25... Qh6
{[%clk 0:01:59]} 26. Kg2 {[%clk 0:01:42.4]} 26... Nf7 {[%clk 0:01:47.6]} 27. Bc1
{[%clk 0:01:39.5]} 27... Qh4 {[%clk 0:01:45.6]} 28. Bf4 {[%clk 0:01:37]} 28...
Ne5 {[%clk 0:01:44.3]} 29. Bxe5 {[%clk 0:01:35.7]} 29... fxe5 {[%clk 0:01:42.7]}
30. Qxb6 {[%clk 0:01:17.6]} 30... h5 {[%clk 0:01:42.9]} 31. Qf2 {[%clk
0:01:15.4]} 31... hxg4 {[%clk 0:01:37.4]} 32. Qxh4 {[%clk 0:01:14.6]} 32... Bxh4
{[%clk 0:01:35.9]} 33. hxg4 {[%clk 0:01:13.3]} 33... Be7 {[%clk 0:01:26.2]} 34.
Rac1 {[%clk 0:01:09.1]} 34... Rc8 {[%clk 0:01:25]} 35. Kf3 {[%clk 0:00:54.5]}
35... Kf7 {[%clk 0:01:19.7]} 36. Ke3 {[%clk 0:00:53.5]} 36... Rh8 {[%clk
0:01:09.8]} 37. Rxc8 {[%clk 0:00:46.7]} 37... Rxc8 {[%clk 0:01:11.7]} 38. Kd3
{[%clk 0:00:47.2]} 38... Rh8 {[%clk 0:01:08.4]} 39. Rf3 {[%clk 0:00:33.9]} 39...
Rh1 {[%clk 0:01:06.6]} 40. g5 {[%clk 0:00:34.1]} 40... Ra1 {[%clk 0:01:05.5]}
41. Kc4 {[%clk 0:00:30.3]} 41... Rc1+ {[%clk 0:01:03.2]} 42. Kd3 {[%clk
0:00:21.7]} 42... Ra1 {[%clk 0:01:02.2]} 43. Kd2 {[%clk 0:00:20.9]} 43... Ra2+
{[%clk 0:01:02]} 44. Ke1 {[%clk 0:00:20.4]} 44... Ra1+ {[%clk 0:01:02.8]} 45.
Kf2 {[%clk 0:00:19.7]} 45... Ra2+ {[%clk 0:01:03.6]} 46. Kg3 {[%clk 0:00:20.4]}
46... Re2 {[%clk 0:01:01.1]} 47. g6+ {[%clk 0:00:19.9]} 47... Ke8 {[%clk
0:00:59.5]} 48. Nc3 {[%clk 0:00:17.1]} 48... Re1 {[%clk 0:00:54.7]} 49. Kf2
{[%clk 0:00:10.3]} 49... Ra1 {[%clk 0:00:55]} 50. Ne4 {[%clk 0:00:10.3]} 50...
Ra2+ {[%clk 0:00:54.3]} 51. Kg3 {[%clk 0:00:08.9]} 51... Re2 {[%clk 0:00:51.6]}
52. f6 {[%clk 0:00:09.1]} 52... Bxf6 {[%clk 0:00:22.4]} 53. Nxf6+ {[%clk
0:00:11]} 53... gxf6 {[%clk 0:00:22.8]} 54. Rxf6 {[%clk 0:00:12.3]} 54... Re3+
{[%clk 0:00:21.9]} 55. Kg4 {[%clk 0:00:12.9]} 55... Re1 {[%clk 0:00:19.3]} 56.
Kf5 {[%clk 0:00:13.1]} 56... Rf1+ {[%clk 0:00:17.6]} 57. Ke6 {[%clk 0:00:14]}
57... Rxf6+ {[%clk 0:00:16.5]} 58. Kxf6 {[%clk 0:00:14.5]} 58... Kf8 {[%clk
0:00:17.9]} 59. Kf5 {[%clk 0:00:14.6]} 59... Kg7 {[%clk 0:00:18.3]} 60. a4
{[%clk 0:00:15.8]} 60... e4 {[%clk 0:00:14.2]} 61. Kxe4 {[%clk 0:00:15.7]} 61...
Kxg6 {[%clk 0:00:16]} 62. b5 {[%clk 0:00:16.8]} 62... axb5 {[%clk 0:00:17.1]}
63. axb5 {[%clk 0:00:17.8]} 63... Kf6 {[%clk 0:00:16.8]} 64. b6 {[%clk
0:00:18.3]} 1-0

[Event "*** Titled Tuesday Blitz"]
[Site "Chess.com"]
[Date "2019.07.02"]
[Round "10"]
[White "moro182"]
[Black "iturrizaga"]
[Result "0-1"]
[WhiteElo "2801"]
[BlackElo "2948"]
[TimeControl "180+2"]
[EndTime "15:16:53 PDT"]
[Termination "iturrizaga won by resignation"]

1. d4 {[%clk 0:03:01.9]} 1... Nf6 {[%clk 0:01:48.7]} 2. c4 {[%clk 0:03:01.3]}
2... e6 {[%clk 0:01:50.2]} 3. Nc3 {[%clk 0:03:01.5]} 3... Bb4 {[%clk 0:01:50.5]}
4. e3 {[%clk 0:03:02.9]} 4... O-O {[%clk 0:01:51.2]} 5. Bd3 {[%clk 0:03:04.5]}
5... c5 {[%clk 0:01:52.6]} 6. Nf3 {[%clk 0:03:05.8]} 6... d5 {[%clk 0:01:52.9]}
7. O-O {[%clk 0:03:06.4]} 7... b6 {[%clk 0:01:53.6]} 8. cxd5 {[%clk 0:02:45.9]}
8... exd5 {[%clk 0:01:53.7]} 9. a3 {[%clk 0:02:29.5]} 9... Bxc3 {[%clk
0:01:53.7]} 10. bxc3 {[%clk 0:02:31.4]} 10... Ba6 {[%clk 0:01:55.1]} 11. Bxa6
{[%clk 0:02:31.1]} 11... Nxa6 {[%clk 0:01:57]} 12. Qa4 {[%clk 0:02:25.6]} 12...
Qc8 {[%clk 0:01:55.2]} 13. Ne5 {[%clk 0:02:10.7]} 13... Re8 {[%clk 0:01:53.5]}
14. f3 {[%clk 0:01:45.5]} 14... Nb8 {[%clk 0:01:51.2]} 15. Bd2 {[%clk
0:01:44.9]} 15... Nbd7 {[%clk 0:01:50.9]} 16. Nd3 {[%clk 0:01:40]} 16... Qc7
{[%clk 0:01:33.1]} 17. Rac1 {[%clk 0:01:25.7]} 17... c4 {[%clk 0:01:19.8]} 18.
Nf2 {[%clk 0:01:22.5]} 18... a6 {[%clk 0:01:20.6]} 19. Qc2 {[%clk 0:01:22.8]}
19... Qc6 {[%clk 0:01:19.5]} 20. Rce1 {[%clk 0:01:20.1]} 20... b5 {[%clk
0:01:19.6]} 21. e4 {[%clk 0:01:20.3]} 21... Nb6 {[%clk 0:01:20.6]} 22. e5 {[%clk
0:01:20.6]} 22... Nfd7 {[%clk 0:01:21.4]} 23. f4 {[%clk 0:01:18.7]} 23... f6
{[%clk 0:01:16.9]} 24. Re3 {[%clk 0:00:43.6]} 24... fxe5 {[%clk 0:00:51.8]} 25.
dxe5 {[%clk 0:00:45.5]} 25... Nc5 {[%clk 0:00:47.5]} 26. f5 {[%clk 0:00:42.4]}
26... Rad8 {[%clk 0:00:44.4]} 27. f6 {[%clk 0:00:41.8]} 27... Rd7 {[%clk
0:00:25.1]} 28. Rh3 {[%clk 0:00:27.4]} 28... Ne4 {[%clk 0:00:24.3]} 29. Ng4
{[%clk 0:00:17.6]} 29... Qe6 {[%clk 0:00:25.2]} 30. Rh4 {[%clk 0:00:10.9]} 30...
Na4 {[%clk 0:00:22.7]} 31. Rf4 {[%clk 0:00:11.3]} 31... Nac5 {[%clk 0:00:23.1]}
32. Be3 {[%clk 0:00:11.9]} 32... Nd3 {[%clk 0:00:22.8]} 33. Rf1 {[%clk
0:00:07.9]} 33... Nxe5 {[%clk 0:00:21.1]} 34. Nxe5 {[%clk 0:00:09.8]} 34... Qxe5
{[%clk 0:00:23]} 35. Bd4 {[%clk 0:00:11.4]} 35... Qg5 {[%clk 0:00:23.2]} 36.
Rhf4 {[%clk 0:00:12.7]} 36... gxf6 {[%clk 0:00:23.3]} 37. Qe2 {[%clk 0:00:13.5]}
37... Rg7 {[%clk 0:00:23.8]} 38. h3 {[%clk 0:00:12.2]} 38... Rg6 {[%clk
0:00:24.1]} 39. Rg4 {[%clk 0:00:13.2]} 39... Qh6 {[%clk 0:00:22.9]} 40. Qf3
{[%clk 0:00:08.9]} 40... Rxg4 {[%clk 0:00:13.5]} 41. Qxg4+ {[%clk 0:00:10.8]}
41... Qg6 {[%clk 0:00:14.7]} 42. Qd7 {[%clk 0:00:12.3]} 42... Qf7 {[%clk
0:00:16]} 43. Qg4+ {[%clk 0:00:13.4]} 43... Kf8 {[%clk 0:00:14.4]} 44. Qh4
{[%clk 0:00:11.8]} 44... Re6 {[%clk 0:00:14.1]} 45. Rf5 {[%clk 0:00:13]} 45...
Rd6 {[%clk 0:00:10.2]} 46. Qf4 {[%clk 0:00:11]} 46... Ke8 {[%clk 0:00:10.3]} 47.
g4 {[%clk 0:00:12.1]} 47... Qe6 {[%clk 0:00:10.3]} 48. Bxf6 {[%clk 0:00:10.8]}
48... Nxf6 {[%clk 0:00:10.8]} 49. Re5 {[%clk 0:00:12.2]} 49... Ke7 {[%clk
0:00:10.8]} 50. g5 {[%clk 0:00:10.6]} 50... Nd7 {[%clk 0:00:09.8]} 51. Rxe6+
{[%clk 0:00:10.1]} 51... Rxe6 {[%clk 0:00:11.7]} 52. Qf5 {[%clk 0:00:11.5]}
52... Nf8 {[%clk 0:00:12.3]} 53. h4 {[%clk 0:00:12.1]} 53... Rd6 {[%clk
0:00:13]} 54. h5 {[%clk 0:00:13.5]} 54... d4 {[%clk 0:00:14.1]} 55. cxd4 {[%clk
0:00:13]} 55... c3 {[%clk 0:00:11.6]} 56. Qe5+ {[%clk 0:00:11.4]} 56... Ne6
{[%clk 0:00:11.2]} 57. Qf6+ {[%clk 0:00:07.5]} 57... Ke8 {[%clk 0:00:11.4]} 58.
Qh8+ {[%clk 0:00:08.1]} 58... Kd7 {[%clk 0:00:12.2]} 59. Qxh7+ {[%clk
0:00:09.3]} 59... Kc8 {[%clk 0:00:12.3]} 60. Qd3 {[%clk 0:00:07.9]} 60... Rc6
{[%clk 0:00:12.2]} 61. Qc2 {[%clk 0:00:03.3]} 61... Nxd4 {[%clk 0:00:13]} 62.
Qe4 {[%clk 0:00:02.9]} 62... c2 {[%clk 0:00:13.7]} 63. Qe8+ {[%clk 0:00:04.2]}
63... Kb7 {[%clk 0:00:14.5]} 64. Qd7+ {[%clk 0:00:05.7]} 64... Kb8 {[%clk
0:00:15.2]} 65. Qd8+ {[%clk 0:00:05.9]} 65... Kb7 {[%clk 0:00:13.3]} 66. Qd7+
{[%clk 0:00:06.9]} 66... Rc7 {[%clk 0:00:14.7]} 67. Qd5+ {[%clk 0:00:07.8]}
67... Kc8 {[%clk 0:00:08.7]} 68. Qa8+ {[%clk 0:00:06]} 68... Kd7 {[%clk
0:00:09.9]} 69. Qd5+ {[%clk 0:00:07.5]} 69... Ke7 {[%clk 0:00:11.2]} 70. Qe5+
{[%clk 0:00:07.2]} 70... Ne6 {[%clk 0:00:12.8]} 71. Qf6+ {[%clk 0:00:08.3]}
71... Kd6 {[%clk 0:00:13.9]} 0-1

[Event "*** Titled Tuesday Blitz"]
[Site "Chess.com"]
[Date "2019.07.02"]
[Round "10"]
[White "ChessQueen"]
[Black "Witik"]
[Result "1/2-1/2"]
[WhiteElo "2591"]
[BlackElo "2532"]
[TimeControl "180+2"]
[EndTime "15:16:57 PDT"]
[Termination "Game drawn by agreement"]

1. Nf3 {[%clk 0:03:01.9]} 1... d5 {[%clk 0:03:00.5]} 2. g3 {[%clk 0:03:02.6]}
2... c6 {[%clk 0:03:01.4]} 3. Bg2 {[%clk 0:03:03.7]} 3... Bg4 {[%clk 0:03:03]}
4. O-O {[%clk 0:03:03.1]} 4... Nd7 {[%clk 0:03:04]} 5. d4 {[%clk 0:03:00.1]}
5... e6 {[%clk 0:03:03.6]} 6. h3 {[%clk 0:03:00.3]} 6... Bh5 {[%clk 0:03:03.7]}
7. c4 {[%clk 0:02:58.3]} 7... Ngf6 {[%clk 0:03:02.1]} 8. cxd5 {[%clk 0:02:59.4]}
8... exd5 {[%clk 0:02:49.9]} 9. Qb3 {[%clk 0:02:55.1]} 9... Nb6 {[%clk
0:02:30.2]} 10. Nc3 {[%clk 0:02:50.5]} 10... Be7 {[%clk 0:02:26.4]} 11. a4
{[%clk 0:02:50.8]} 11... a5 {[%clk 0:02:26.6]} 12. Ne5 {[%clk 0:02:50.9]} 12...
O-O {[%clk 0:02:23.8]} 13. f4 {[%clk 0:02:50.6]} 13... c5 {[%clk 0:01:04.8]} 14.
g4 {[%clk 0:02:37.8]} 14... cxd4 {[%clk 0:01:03.5]} 15. Nb5 {[%clk 0:02:38]}
15... Bg6 {[%clk 0:00:53.6]} 16. f5 {[%clk 0:02:35.6]} 16... Bc5 {[%clk
0:00:39.4]} 17. Nd3 {[%clk 0:02:32.7]} 17... Be7 {[%clk 0:00:21]} 18. Bf4 {[%clk
0:02:27.4]} 18... Ne4 {[%clk 0:00:21.7]} 19. Nc7 {[%clk 0:02:08]} 19... Nc4
{[%clk 0:00:17.1]} 20. Nxa8 {[%clk 0:02:01.5]} 20... Ncd2 {[%clk 0:00:18.1]} 21.
Qxb7 {[%clk 0:01:53.7]} 21... Nxf1 {[%clk 0:00:19.1]} 22. Rxf1 {[%clk
0:01:55.5]} 22... Bh4 {[%clk 0:00:14.4]} 23. fxg6 {[%clk 0:01:47.4]} 23... hxg6
{[%clk 0:00:15]} 24. Nc7 {[%clk 0:01:41.3]} 24... g5 {[%clk 0:00:14]} 25. Be5
{[%clk 0:01:37.6]} 25... Ng3 {[%clk 0:00:11.2]} 26. Rf3 {[%clk 0:01:06.5]} 26...
Nxe2+ {[%clk 0:00:11.9]} 27. Kf1 {[%clk 0:01:07.3]} 27... Nf4 {[%clk 0:00:05.7]}
28. Nxf4 {[%clk 0:01:04.5]} 28... gxf4 {[%clk 0:00:07.6]} 29. Qxd5 {[%clk
0:00:58.8]} 29... Qb8 {[%clk 0:00:04.9]} 30. Rb3 {[%clk 0:00:53.2]} 30... Qc8
{[%clk 0:00:02.9]} 31. Be4 {[%clk 0:00:47.9]} 31... Rd8 {[%clk 0:00:04.2]} 32.
Qc4 {[%clk 0:00:39.5]} 32... Qd7 {[%clk 0:00:05.6]} 33. Rd3 {[%clk 0:00:36.1]}
33... Qe7 {[%clk 0:00:06.5]} 34. Rxd4 {[%clk 0:00:35.1]} 34... Qxe5 {[%clk
0:00:08]} 35. Rxd8+ {[%clk 0:00:29.4]} 35... Bxd8 {[%clk 0:00:09.9]} 36. Nb5
{[%clk 0:00:26]} 36... Qxb2 {[%clk 0:00:10.1]} 37. Qc8 {[%clk 0:00:24.2]} 37...
Qf6 {[%clk 0:00:05.2]} 38. Nc3 {[%clk 0:00:18.5]} 38... g6 {[%clk 0:00:05.6]}
39. Nd5 {[%clk 0:00:18.7]} 39... Qa1+ {[%clk 0:00:06.7]} 40. Ke2 {[%clk
0:00:19.2]} 40... Qb2+ {[%clk 0:00:05.8]} 41. Kf3 {[%clk 0:00:17.3]} 41... Qa3+
{[%clk 0:00:07.3]} 42. Qc3 {[%clk 0:00:16.2]} 42... Qd6 {[%clk 0:00:09.2]} 43.
Nxf4 {[%clk 0:00:16.6]} 43... Bf6 {[%clk 0:00:10]} 44. Qc8+ {[%clk 0:00:16.9]}
44... Kg7 {[%clk 0:00:10.7]} 45. Qc2 {[%clk 0:00:17]} 45... Bg5 {[%clk
0:00:11.4]} 46. Ne2 {[%clk 0:00:16.9]} 46... Bf6 {[%clk 0:00:12.3]} 47. Qd3
{[%clk 0:00:17.6]} 47... Qb4 {[%clk 0:00:13.3]} 48. Qe3 {[%clk 0:00:18.5]} 48...
Qxa4 {[%clk 0:00:13.8]} 49. g5 {[%clk 0:00:19.8]} 49... Bb2 {[%clk 0:00:13.9]}
50. Bd5 {[%clk 0:00:20.5]} 50... Qh4 {[%clk 0:00:13.5]} 51. Kg2 {[%clk
0:00:20.1]} 51... a4 {[%clk 0:00:13.5]} 52. Qf4 {[%clk 0:00:20.6]} 52... Qxf4
{[%clk 0:00:14.3]} 53. Nxf4 {[%clk 0:00:22.5]} 53... a3 {[%clk 0:00:16.2]} 54.
Ba2 {[%clk 0:00:23.3]} 54... Bc1 {[%clk 0:00:17.6]} 55. Kf3 {[%clk 0:00:23.7]}
55... f6 {[%clk 0:00:18]} 56. Ne6+ {[%clk 0:00:24.1]} 56... Kf7 {[%clk
0:00:18.9]} 57. Nc7+ {[%clk 0:00:24.6]} 57... Kg7 {[%clk 0:00:18.4]} 58. Ne8+
{[%clk 0:00:25.4]} 58... Kf8 {[%clk 0:00:18.7]} 59. Nxf6 {[%clk 0:00:25.4]}
59... Ke7 {[%clk 0:00:17.9]} 60. Ne4 {[%clk 0:00:26]} 60... Kf8 {[%clk
0:00:16.6]} 61. h4 {[%clk 0:00:27.4]} 61... Kg7 {[%clk 0:00:18]} 62. Kg4 {[%clk
0:00:28.8]} 62... Bb2 {[%clk 0:00:18.8]} 63. Nc5 {[%clk 0:00:29.8]} 63... Bc1
{[%clk 0:00:18.5]} 64. Ne6+ {[%clk 0:00:30.8]} 64... Kh7 {[%clk 0:00:18.5]} 65.
Bb1 {[%clk 0:00:28.3]} 65... Kg8 {[%clk 0:00:13.4]} 66. Nc7 {[%clk 0:00:29.3]}
66... Kf7 {[%clk 0:00:13.5]} 67. Nb5 {[%clk 0:00:29.1]} 67... Bb2 {[%clk
0:00:14.1]} 68. Nd6+ {[%clk 0:00:29]} 68... Kg7 {[%clk 0:00:15.3]} 69. Ne4
{[%clk 0:00:28.1]} 69... Kf7 {[%clk 0:00:15.3]} 70. Nf2 {[%clk 0:00:28.2]} 70...
Kg7 {[%clk 0:00:16.4]} 71. Nd3 {[%clk 0:00:29.2]} 71... Bc3 {[%clk 0:00:15.7]}
72. Nf4 {[%clk 0:00:29.7]} 72... Bb2 {[%clk 0:00:14.5]} 73. h5 {[%clk
0:00:30.1]} 73... gxh5+ {[%clk 0:00:15.6]} 74. Nxh5+ {[%clk 0:00:31.2]} 74...
Kf7 {[%clk 0:00:15.5]} 75. Kf5 {[%clk 0:00:32.4]} 75... Ke7 {[%clk 0:00:15.5]}
76. Ba2 {[%clk 0:00:34]} 76... Kd6 {[%clk 0:00:16.5]} 77. Nf6 {[%clk 0:00:35.2]}
77... Ke7 {[%clk 0:00:17.7]} 78. g6 {[%clk 0:00:36.3]} 78... Bxf6 {[%clk
0:00:18.1]} 79. Ke4 {[%clk 0:00:33.4]} 79... Bg7 {[%clk 0:00:18.7]} 1/2-1/2